fUST/lending_fUST_20260624
["ID","MTS","AMOUNT","RATE_DAILY","PERIOD"]
[426308034,1782270642000,-151.0,0.0002103,2]
[426308030,1782270642000,-3000.0,0.0002103,2]
[426308009,1782270642000,-161.816093,0.0002101,2]
[426308038,1782270642000,-686.69056382,0.00021033,2]
[426308053,1782270642000,-3000.0,0.0002105,2]
[426308032,1782270642000,-151.0,0.0002103,2]
[426308068,1782270642000,-1000.0,0.0002121,2]
[426308066,1782270642000,-977.34681704,0.00021165,7]
[426308064,1782270642000,-1169.43774629,0.00021164,7]
[426308050,1782270642000,-384.11225532,0.0002105,2]
[426308052,1782270642000,-388.42891991,0.0002105,2]
[426308044,1782270642000,-353.84555569,0.00021033,2]
[426308048,1782270642000,-151.454472,0.0002104,2]
[426308042,1782270642000,-338.83860736,0.00021033,2]
[426308036,1782270642000,-744.06854211,0.00021033,2]
[426308040,1782270642000,-370.48030504,0.00021033,2]
[426308046,1782270642000,-3000.0,0.0002104,2]
[426308160,1782270643000,-556.53,0.00032059,10]
[426308174,1782270643000,-394.66541804,0.00032357,2]
[426308165,1782270643000,-360.0,0.00032112,2]
[426308170,1782270643000,-1010.0,0.000323,20]
[426308172,1782270643000,-1006.05,0.000323,30]
[426308180,1782270643000,-1062.527053,0.00032357,2]
[426308168,1782270643000,-502.94687784,0.00032159,60]
[426308178,1782270643000,-710.39775247,0.00032357,2]
[426308193,1782270643000,-255.19,0.00035,2]
[426308182,1782270643000,-312.23448333,0.00032407,2]
[426308187,1782270643000,-173.95,0.00033067,30]
[426308194,1782270643000,-151.0,0.00035616,7]
[426308176,1782270643000,-590.29280722,0.00032357,2]
[426308185,1782270643000,-600.0,0.000327,30]
[426308191,1782270643000,-298.61602365,0.00035,120]
[426308166,1782270643000,-160.0,0.00032112,2]
[426308183,1782270643000,-38613.01347895,0.0003266,2]
[426308163,1782270643000,-217.20583109,0.00032096,2]
[426308132,1782270643000,-186.0,0.00028994,2]
[426308159,1782270643000,-200.0,0.00032059,10]
[426308189,1782270643000,-6000.0,0.00035,120]
[426308126,1782270643000,-225.68406299,0.00027532,60]
[426308128,1782270643000,-535.24878585,0.00027532,60]
[426308130,1782270643000,-150.115,0.00028994,2]
[426308135,1782270643000,-169.3,0.00029673,7]
[426308134,1782270643000,-192.31475,0.00029046,2]
[426308145,1782270643000,-500.0,0.00031838,2]
[426308137,1782270643000,-2922.2290152,0.00029743,2]
[426308146,1782270643000,-500.0,0.00031838,2]
[426308141,1782270643000,-500.0,0.00031838,2]
[426308143,1782270643000,-500.0,0.00031838,2]
[426308139,1782270643000,-409.50919625,0.0003,2]
[426308148,1782270643000,-526.76683335,0.00031838,2]
[426308152,1782270643000,-500.0,0.00031838,2]
[426308153,1782270643000,-500.0,0.00031838,2]
[426308157,1782270643000,-317.71335275,0.00031838,2]
[426308155,1782270643000,-500.0,0.00031838,2]
[426308150,1782270643000,-151.5,0.00031838,2]
[426308196,1782270643000,-151.0,0.00035616,7]
[426308233,1782270643000,-205.89234709,0.00037436,2]
[426308202,1782270643000,-151.0,0.00035616,7]
[426308239,1782270643000,-151.0,0.000381,18]
[426308235,1782270643000,-615.57950738,0.00037497,120]
[426308237,1782270643000,-350.0,0.00037699,120]
[426308242,1782270643000,-1000.0,0.000385,60]
[426308245,1782270643000,-500.0,0.000388,14]
[426308246,1782270643000,-501.64378761,0.000388,14]
[426308247,1782270643000,-417.15472785,0.000389,120]
[426308238,1782270643000,-485.88709297,0.00038,30]
[426308248,1782270643000,-765.51,0.000393,120]
[426308243,1782270643000,-765.51,0.000388,120]
[426308249,1782270643000,-864.0,0.00039567,60]
[426308250,1782270643000,-176213.82817797,0.00039601,30]
[426308252,1782270643000,-836.25633344,0.00039601,30]
[426308253,1782270643000,-5861.33643467,0.00039601,30]
[426308261,1782270643000,-7259.77735653,0.00039601,30]
[426308200,1782270643000,-151.0,0.00035616,7]
[426308244,1782270643000,-183.48,0.000388,30]
[426308241,1782270643000,-420.0,0.00038356,120]
[426308255,1782270643000,-1808.66404612,0.00039601,30]
[426308262,1782270643000,-1411.71650783,0.00039601,30]
[426308206,1782270643000,-151.0,0.00035616,7]
[426308204,1782270643000,-151.0,0.00035616,7]
[426308217,1782270643000,-206.545877,0.00035616,7]
[426308215,1782270643000,-151.0,0.00035616,7]
[426308240,1782270643000,-765.51,0.000383,120]
[426308209,1782270643000,-151.0,0.00035616,7]
[426308208,1782270643000,-151.0,0.00035616,7]
[426308198,1782270643000,-151.0,0.00035616,7]
[426308213,1782270643000,-151.0,0.00035616,7]
[426308218,1782270643000,-720.0,0.0003597,30]
[426308220,1782270643000,-1261.66640838,0.00036184,2]
[426308222,1782270643000,-1887.04804612,0.00036184,2]
[426308226,1782270643000,-200.0,0.00036999,10]
[426308228,1782270643000,-200.0,0.00036999,10]
[426308224,1782270643000,-150.0,0.00036664,2]
[426308229,1782270643000,-101688.00495209,0.00037,120]
[426308231,1782270643000,-1100.0,0.00037,5]
[426308211,1782270643000,-151.0,0.00035616,7]
[426308522,1782270646000,-304.0,0.00039601,30]
[426308499,1782270646000,-501.5666146,0.00039601,30]
[426308709,1782270747000,195.4900964,0.00023789,120]
[426308711,1782271060000,-1681.06024453,9.51e-05,9]
[426308712,1782271640000,-992.33080636,9.415e-05,2]
[426308713,1782271640000,-146.63996902,9.51e-05,2]
[426308715,1782271764000,-1990.62108,9.51e-05,2]
[426308716,1782271769000,-2412.32015608,9.51e-05,2]
[426308717,1782271769000,-247.45023288,9.606e-05,7]
[426308719,1782271769000,-247.45023288,9.798e-05,7]
[426308720,1782271769000,-247.45023288,0.00010086,7]
[426308721,1782271769000,-179.17020378,0.00010374,7]
[426308718,1782271769000,-753.1117415,9.606e-05,2]
[426308809,1782271833000,-247.45023291,0.00010759,7]
[426308808,1782271833000,-68.2800291,0.00010374,7]
[426308810,1782271833000,-88.26973799,0.00010893,7]
[426308818,1782271838000,-160.0,0.00021986,2]
[426308816,1782271838000,-273.72688821,0.00010893,7]
[426308817,1782271838000,-158.21,0.00017808,2]
[426308821,1782271838000,-66.88398561,0.00025813,30]
[426308819,1782271838000,-151.0,0.00023813,6]
[426308820,1782271838000,-1000.0,0.0002481,30]
[426308833,1782271839000,-527.53794749,0.00035,120]
[426308831,1782271839000,-327.81080951,0.00030662,2]
[426308830,1782271839000,-578.99770352,0.00030662,2]
[426308832,1782271839000,-163.45740175,0.000332,117]
[426308828,1782271839000,-162.13163009,0.00030662,2]
[426308823,1782271839000,-208.27,0.00025813,30]
[426308826,1782271839000,-385.99846901,0.00030305,2]
[426308822,1782271839000,-155.79601439,0.00025813,30]
[426308829,1782271839000,-443.42555058,0.00030662,2]
[426308827,1782271839000,-163.90540475,0.00030305,2]
[426308824,1782271839000,-192.99923451,0.00029769,2]
[426308825,1782271839000,-186.0,0.00030194,2]
[426308836,1782271839000,-656.15,0.000383,120]
[426308834,1782271839000,-407.58323148,0.00035754,2]
[426308835,1782271839000,-205.89234709,0.00037436,2]
[426308839,1782271839000,-656.15,0.000393,120]
[426308847,1782271839000,-200.0,0.00039589,30]
[426308845,1782271839000,-125701.27107262,0.0003958,120]
[426308846,1782271839000,-200.82084281,0.00039589,30]
[426308849,1782271839000,-60830.66965819,0.0003959,2]
[426308844,1782271839000,-14298.72892738,0.0003958,120]
[426308848,1782271839000,-672045.5605903,0.0003959,2]
[426308842,1782271839000,-937.13327316,0.000395,11]
[426308841,1782271839000,-153.33069389,0.0003949,2]
[426308838,1782271839000,-500.0,0.000388,14]
[426308840,1782271839000,-153.3306939,0.00039489,2]
[426308837,1782271839000,-656.15,0.000388,120]
[426308843,1782271839000,-256.29169061,0.00039579,15]
[426308877,1782271841000,-398.406,0.0003959,2]
[426308906,1782271846000,-265.608,0.0003959,2]
[426308905,1782271846000,-3894.35501349,0.0003959,2]
[426308907,1782271847000,-3846.67112709,0.0003959,2]
[426308908,1782271847000,-152.00302683,0.0003959,2]
[426308946,1782272738000,-96.97912292,0.00010893,7]
[426308944,1782272738000,-164.96682193,0.00010374,7]
[426308945,1782272738000,-164.96682193,0.00010582,7]
[426308948,1782272816000,-67.98769901,0.00010893,7]
[426308950,1782272816000,-164.96682194,0.00011619,7]
[426308951,1782272816000,-150.0,0.00023882,30]
[426308952,1782272816000,-2285.3937184,0.00023882,30]
[426308949,1782272816000,-164.96682193,0.00011204,7]
[426308953,1782272846000,-361.43652111,0.00023882,30]
[426308994,1782273031000,-117.17930619,0.00035616,7]
[426308992,1782273031000,-328.73370974,0.00035616,7]
[426308991,1782273031000,-670.837,0.00035491,120]
[426308985,1782273031000,-2353.16976049,0.00029851,9]
[426308989,1782273031000,-163.45740173,0.000332,117]
[426308987,1782273031000,-186.0,0.00030153,2]
[426309100,1782273038000,-166.902084,0.00039,120]
[426309099,1782273038000,-500.64184221,0.000388,14]
[426309096,1782273038000,-1391.46948214,0.000386,100]
[426309098,1782273038000,-562.41,0.000388,120]
[426309093,1782273038000,-160.87330879,0.000375,30]
[426309091,1782273038000,-165.3960551,0.00037352,2]
[426309095,1782273038000,-562.41,0.000383,120]
[426309094,1782273038000,-639.84848578,0.00038029,2]
[426309092,1782273038000,-459.12669121,0.000375,30]
[426309090,1782273038000,-221.35425642,0.00035616,7]
[426309097,1782273038000,-3608.53051786,0.000386,100]
[426309101,1782273038000,-208.78875086,0.000392,2]
[426309107,1782273038000,-220.59297734,0.000392,2]
[426309102,1782273038000,-332.92328209,0.000392,2]
[426309103,1782273038000,-405.16892683,0.000392,2]
[426309113,1782273038000,-200169.01510438,0.0003928,2]
[426309112,1782273038000,-10209.98579081,0.0003928,2]
[426309108,1782273038000,-229.99642454,0.000392,2]
[426309106,1782273038000,-176.7985589,0.000392,2]
[426309114,1782273038000,-141881.03385903,0.0003928,2]
[426309109,1782273038000,-234.1305836,0.000392,2]
[426309111,1782273038000,-17300.48105467,0.0003928,2]
[426309105,1782273038000,-490.05454213,0.000392,2]
[426309104,1782273038000,-457.05781332,0.000392,2]
[426309110,1782273038000,-162.91386228,0.0003928,2]
[426309120,1782273040000,-414.12432266,0.0003928,2]
[426309119,1782273040000,-754.11748851,0.0003928,2]
[426309118,1782273040000,-645.96788494,0.0003928,2]
[426309137,1782273043000,-30.86564687,0.00039279,15]
[426309135,1782273043000,-216.05286228,0.00039279,15]
[426309134,1782273043000,-205.27370092,0.00039279,15]
[426309136,1782273043000,-283.94713772,0.00039279,15]
[426309140,1782273043000,-1859.39461127,0.0003928,2]
[426309139,1782273043000,-160.6614356,0.00039279,15]
[426309141,1782273043000,-456.0,0.0003928,2]
[426309143,1782273043000,-34117.22449875,0.0003928,2]
[426309142,1782273043000,-3940.33963094,0.0003928,2]
[426309138,1782273043000,-469.13435313,0.00039279,15]
[426309153,1782273046000,-874.65772156,0.00039357,11]
[426309147,1782273046000,-8101.63098652,0.0003928,2]
[426309148,1782273046000,-6051.57517334,0.0003928,2]
[426309150,1782273046000,-562.41,0.000393,120]
[426309151,1782273046000,-162.91386225,0.00039306,2]
[426309152,1782273046000,-162.91386225,0.00039331,2]
[426309149,1782273046000,-3146.90781,0.00039293,2]
[426309154,1782273046000,-162.91386225,0.00039357,2]
[426309158,1782273046000,-63774.76006104,0.0003938,2]
[426309156,1782273046000,-192.747,0.00039372,54]
[426309157,1782273046000,-200.0,0.00039379,30]
[426309160,1782273046000,-416.8001,0.0003938,2]
[426309159,1782273046000,-84051.02579092,0.0003938,2]
[426309155,1782273046000,-639.84848578,0.00039372,2]
[426309162,1782273625000,207.0,0.00023923,30]
[426309163,1782274158000,-263.08735685,0.00014409,9]
[426309164,1782274158000,-4027.44631959,0.00014555,9]
[426309165,1782274158000,-874.18507521,0.00015,2]
[426309167,1782274158000,-11233.0,0.00018,2]
[426309168,1782274158000,-1145.63837261,0.00018,2]
[426309166,1782274158000,-7667.76480602,0.00018,2]
[426309357,1782274238000,-543.31055671,0.00018,2]
[426309355,1782274238000,-605.21789017,0.0001782,9]
[426309460,1782274239000,-154.197,0.00019617,2]
[426309461,1782274239000,-2985.67306557,0.0002,2]
[426309459,1782274239000,-2.13516399,0.00018,2]
[426309476,1782274246000,-341.393,0.00021,2]
[426309475,1782274246000,-2017.28178131,0.00021,2]
[426309474,1782274246000,-1829.40210779,0.0002,2]
[426309479,1782274949000,836.33509658,0.00023924,30]
[426309480,1782275142000,-1533.99974862,0.00017194,9]
[426309481,1782275243000,-211.0093732,0.00017194,9]
[426309482,1782275243000,-484.3590459,0.00017511,2]
[426309486,1782275243000,-566.15200051,0.00019145,2]
[426309483,1782275243000,-211.16819282,0.0001772,2]
[426309485,1782275243000,-1348.60027922,0.000186,2]
[426309484,1782275243000,-916.47966256,0.00018055,2]
[426309489,1782275432000,-212.48511511,0.00019145,2]
[426309488,1782275432000,-199.41488489,0.00018749,2]
[426309597,1782275440000,-700.9107005,0.00019145,2]
[426309599,1782275440000,-394.20753783,0.0001969,2]
[426309601,1782275440000,-1372.29171584,0.0001969,2]
[426309602,1782275440000,-842.0090127,0.00020113,2]
[426309604,1782275440000,-2053.45069133,0.00020779,2]
[426309603,1782275440000,-1780.72089587,0.00020234,2]
[426309606,1782275440000,-4000.0,0.00021,2]
[426309607,1782275440000,-5313.33039281,0.00021,2]
[426309608,1782275440000,-3000.0,0.0002101,2]
[426309609,1782275440000,-1.61668964,0.0002102,2]
[426309614,1782275440000,-1810.30281471,0.0002102,2]
[426309605,1782275440000,-641.32521869,0.00021,2]
[426309641,1782275446000,-1188.08049565,0.0002102,2]
[426309643,1782275446000,-3000.0,0.0002103,2]
[426309642,1782275446000,-154.198,0.0002102,2]
[426309645,1782275446000,-784.94615132,0.0002104,2]
[426309646,1782275446000,-2212.84151253,0.00021324,2]
[426309644,1782275446000,-2215.05384868,0.0002104,2]
[426309647,1782275446000,-147.64798042,0.0002173,2]
[426309648,1782275446000,-298.32869726,0.0002173,2]
[426309649,1782275446000,-415.30761713,0.0002173,2]
[426309655,1782276345000,-537.62146496,0.00021298,2]
[426309657,1782276551000,-137.7514222,0.0002173,2]
[426309656,1782276551000,-170.7651067,0.00021724,7]
[426309779,1782276638000,-2808.32055974,0.00023503,3]
[426309777,1782276638000,-300.0,0.00023502,2]
[426309792,1782276638000,-500.0,0.00025679,2]
[426309788,1782276638000,-3145.55491266,0.00025137,2]
[426309771,1782276638000,-165.91697414,0.00022858,2]
[426309773,1782276638000,-2627.35356667,0.00022958,3]
[426309783,1782276638000,-2874.96366731,0.00024047,3]
[426309770,1782276638000,-1605.7584725,0.00022759,2]
[426309785,1782276638000,-3084.26719066,0.00024592,2]
[426309766,1782276638000,-165.91697414,0.00022294,2]
[426309764,1782276638000,-2340.402129,0.00021868,3]
[426309760,1782276638000,-28.16555196,0.0002173,2]
[426309768,1782276638000,-2472.68921937,0.00022413,3]
[426309775,1782276638000,-256.14766008,0.00023002,7]
[426309762,1782276638000,-263.6221355,0.0002183,7]
[426309781,1782276638000,-806.8043848,0.00023503,2]
[426309796,1782276638000,-322.92801437,0.00025679,2]
[426309797,1782276638000,-500.0,0.00025679,2]
[426309798,1782276638000,-633.69759762,0.00025679,2]
[426309794,1782276638000,-212.54037709,0.00025679,2]
[426309800,1782276638000,-500.0,0.00025679,2]
[426309799,1782276638000,-500.0,0.00025679,2]
[426309801,1782276638000,-500.0,0.00025679,2]
[426309802,1782276638000,-603.73343409,0.00025679,2]
[426309806,1782276638000,-500.0,0.00025679,2]
[426309805,1782276638000,-500.0,0.00025679,2]
[426309803,1782276638000,-500.0,0.00025679,2]
[426309804,1782276638000,-500.0,0.00025679,2]
[426309807,1782276638000,-3334.2958196,0.00025682,2]
[426309786,1782276638000,-200.0,0.000251,2]
[426309812,1782276639000,-383.18133265,0.00033763,2]
[426309811,1782276639000,-163.45740173,0.000332,117]
[426309813,1782276639000,-394.60431902,0.00033763,2]
[426309809,1782276639000,-192.3147503,0.00026162,2]
[426309810,1782276639000,-200.97,0.000271,2]
[426309808,1782276639000,-6026.17533126,0.00026062,2]
[426309814,1782276639000,-258.3724405,0.00035616,7]
[426309816,1782276639000,-324.54005592,0.00036412,2]
[426309820,1782276639000,-57572.27254177,0.000383,2]
[426309817,1782276639000,-192.68939886,0.00038299,15]
[426309819,1782276639000,-482.07,0.000383,120]
[426309818,1782276639000,-200.0,0.00038299,10]
[426309821,1782276639000,-591.87945157,0.000383,2]
[426309823,1782276639000,-708.92621383,0.000383,2]
[426309822,1782276639000,-795.18,0.000383,2]
[426309815,1782276639000,-266.17391324,0.00035616,7]
[426309825,1782276640000,-313.95570222,0.000383,2]
[426309835,1782277028000,2129.85,0.00023934,30]
[426309838,1782277221000,152.00302683,0.00021724,7]
[426309839,1782277254000,-453.0,0.00011565,2]
[426309841,1782277752000,-374.25965605,0.00010255,2]
[426309842,1782277752000,-3610.05423645,0.00010359,2]
[426309843,1782277752000,-4863.02515887,0.00010464,2]
[426309844,1782277752000,-151.0,0.00010785,2]
[426309845,1782277752000,-156.0,0.00011118,2]
[426309852,1782277752000,-78.3366993,0.000199,2]
[426309846,1782277752000,-300.0,0.00011799,2]
[426309848,1782277752000,-250.90147616,0.00014129,2]
[426309849,1782277752000,-177.47,0.0001599,2]
[426309850,1782277752000,-153.679,0.00019626,2]
[426309851,1782277752000,-1090.98613629,0.00019626,2]
[426309847,1782277752000,-2351.50659373,0.000118,5]
[426309853,1782277772000,-354.20779069,0.000199,2]
[426309893,1782277832000,-420.36451419,0.00019999,2]
[426309904,1782277832000,-467.72055163,0.00019999,2]
[426309903,1782277832000,-79.63548581,0.00019999,2]
[426310197,1782277838000,-153.0,0.00023468,7]
[426310171,1782277838000,-32.27944837,0.00019999,2]
[426310177,1782277838000,-501.25023305,0.00019999,2]
[426310179,1782277838000,-500.0,0.00019999,2]
[426310173,1782277838000,-500.0,0.00019999,2]
[426310181,1782277838000,-17540.65782968,0.0002,3]
[426310175,1782277838000,-500.0,0.00019999,2]
[426310183,1782277838000,-1829.40210779,0.0002,2]
[426310188,1782277838000,-5017.281782,0.00021,2]
[426310199,1782277838000,-157.03196504,0.00023468,7]
[426310201,1782277838000,-500.0,0.00023926,2]
[426310194,1782277838000,-289.08750412,0.00022363,7]
[426310192,1782277838000,-153.0,0.00022165,7]
[426310190,1782277838000,-151.0,0.00021,2]
[426310186,1782277838000,-1409.05153884,0.0002061,2]
[426310216,1782277839000,-335.29049542,0.00031994,2]
[426310205,1782277839000,-151.0,0.00023934,4]
[426310203,1782277839000,-151.0,0.00023934,6]
[426310207,1782277839000,-342.5757707,0.00030163,120]
[426310209,1782277839000,-437.48360151,0.00031573,2]
[426310211,1782277839000,-450.52538823,0.00031573,2]
[426310214,1782277839000,-325.85141543,0.00031994,2]
[426310234,1782277839000,-657.40700502,0.00037511,2]
[426310228,1782277839000,-5144.68240234,0.00037511,2]
[426310221,1782277839000,-372.02921601,0.0003633,2]
[426310225,1782277839000,-44091.39394518,0.00037511,2]
[426310223,1782277839000,-252.00700065,0.0003751,15]
[426310230,1782277839000,-325.80027339,0.00037511,2]
[426310219,1782277839000,-163.45740173,0.000332,117]
[426310232,1782277839000,-3218.12852367,0.00037511,2]
[426310218,1782277839000,-382.80594848,0.00031994,2]
[426310462,1782277840000,-26055.8660087,0.00037511,2]
[426311148,1782277846000,-4060.66593419,0.00037511,2]
[426311150,1782277846000,-531.58947044,0.00037611,2]
[426311195,1782277847000,-473.5344588,0.00037904,30]
[426311209,1782277847000,-500.0,0.00037904,30]
[426311215,1782277847000,-500.0,0.00037904,30]
[426311217,1782277847000,-500.0,0.00037904,30]
[426311227,1782277847000,-500.0,0.00037904,30]
[426311231,1782277847000,-500.0,0.00037904,30]
[426311233,1782277847000,-500.0,0.00037904,30]
[426311222,1782277847000,-500.0,0.00037904,30]
[426311202,1782277847000,-500.0,0.00037904,30]
[426311229,1782277847000,-500.0,0.00037904,30]
[426311197,1782277847000,-500.0,0.00037904,30]
[426311207,1782277847000,-500.0,0.00037904,30]
[426311199,1782277847000,-500.0,0.00037904,30]
[426311201,1782277847000,-500.0,0.00037904,30]
[426311211,1782277847000,-500.0,0.00037904,30]
[426311206,1782277847000,-500.0,0.00037904,30]
[426311194,1782277847000,-500.0,0.00037904,30]
[426311204,1782277847000,-500.0,0.00037904,30]
[426311192,1782277847000,-500.0,0.00037904,30]
[426311190,1782277847000,-3128.80043385,0.000379,2]
[426311188,1782277847000,-282.45811007,0.00037611,7]
[426311186,1782277847000,-1880.35057854,0.00037611,2]
[426311213,1782277847000,-500.0,0.00037904,30]
[426311224,1782277847000,-402.74312267,0.00037904,30]
[426311218,1782277847000,-500.0,0.00037904,30]
[426311220,1782277847000,-500.0,0.00037904,30]
[426311226,1782277847000,-396.46783968,0.00037904,30]
[426311277,1782277847000,-8873.07493991,0.00037999,2]
[426311273,1782277847000,-200.0,0.00037998,10]
[426311275,1782277847000,-200.0,0.00037999,10]
[426311272,1782277847000,-205.9102891,0.00037998,10]
[426311268,1782277847000,-353.81184954,0.00037904,30]
[426311266,1782277847000,-500.0,0.00037904,30]
[426311270,1782277847000,-522.78051887,0.00037904,30]
[426311264,1782277847000,-500.0,0.00037904,30]
[426311262,1782277847000,-500.0,0.00037904,30]
[426311258,1782277847000,-500.0,0.00037904,30]
[426311260,1782277847000,-500.0,0.00037904,30]
[426311251,1782277847000,-251.7178322,0.00037904,30]
[426311247,1782277847000,-500.0,0.00037904,30]
[426311253,1782277847000,-500.0,0.00037904,30]
[426311244,1782277847000,-500.0,0.00037904,30]
[426311249,1782277847000,-500.0,0.00037904,30]
[426311246,1782277847000,-500.0,0.00037904,30]
[426311242,1782277847000,-379.11790427,0.00037904,30]
[426311240,1782277847000,-500.0,0.00037904,30]
[426311238,1782277847000,-621.49032908,0.00037904,30]
[426311235,1782277847000,-500.0,0.00037904,30]
[426311237,1782277847000,-500.0,0.00037904,30]
[426311257,1782277847000,-500.0,0.00037904,30]
[426311552,1782278745000,-271.53952267,0.0001046,7]
[426311550,1782278745000,-164.96682194,0.00010255,7]
[426311553,1782278745000,-271.53952267,0.00010768,7]
[426311555,1782278745000,-183.23700764,0.00011486,7]
[426311554,1782278745000,-271.53952267,0.00011075,7]
[426311551,1782278745000,-271.53952267,0.00010255,7]
[426311557,1782278814000,-166.37425919,0.00018082,2]
[426311556,1782278814000,-88.30251503,0.00011486,7]
[426311558,1782278951000,-407.00146479,0.00017722,2]
[426311579,1782279032000,-245.11023953,0.00020272,2]
[426311590,1782279032000,-266.29721602,0.0002328,60]
[426311577,1782279032000,-2923.62013374,0.00020202,2]
[426311575,1782279032000,-420.0,0.00020003,2]
[426311574,1782279032000,-500.0,0.00019999,2]
[426311576,1782279032000,-984.33631036,0.00020202,2]
[426311572,1782279032000,-1217.47058028,0.00019452,2]
[426311573,1782279032000,-3017.75887213,0.00019999,2]
[426311569,1782279032000,-406.84296892,0.000188,2]
[426311567,1782279032000,-300.0,0.00018339,2]
[426311571,1782279032000,-406.84296892,0.00019452,2]
[426311568,1782279032000,-3012.08478288,0.0001834,2]
[426311566,1782279032000,-1217.47058028,0.00018082,2]
[426311564,1782279032000,-932.57118007,0.00017722,2]
[426311565,1782279032000,-240.46870973,0.00018082,2]
[426311562,1782279032000,-2829.38739309,0.00017722,2]
[426311563,1782279032000,-831.03996205,0.00017722,2]
[426311561,1782279032000,-178.13590032,0.00017545,2]
[426311570,1782279032000,-1217.47058028,0.000188,2]
[426311589,1782279032000,-530.59261834,0.0002307,60]
[426311585,1782279032000,-390.0,0.00021033,2]
[426311580,1782279032000,-1217.47058028,0.00020272,2]
[426311600,1782279032000,-358.20913009,0.00025089,2]
[426311594,1782279032000,-1500.0,0.00023933,2]
[426311581,1782279032000,-488.7247646,0.00020355,2]
[426311595,1782279032000,-1302.641392,0.0002432,2]
[426311597,1782279032000,-266.29721602,0.00024613,120]
[426311593,1782279032000,-500.0,0.00023932,2]
[426311601,1782279032000,-1302.641392,0.00025264,2]
[426311596,1782279032000,-637.94982043,0.00024444,2]
[426311598,1782279032000,-796.88983436,0.00024613,120]
[426311599,1782279032000,-158.31,0.00024613,7]
[426311592,1782279032000,-1302.641392,0.00023376,2]
[426311587,1782279032000,-160.0,0.00022852,2]
[426311583,1782279032000,-2030.855737,0.00020539,2]
[426311582,1782279032000,-3081.3323446,0.00020356,2]
[426311586,1782279032000,-1302.641392,0.00022431,2]
[426311588,1782279032000,-266.29721602,0.0002307,60]
[426311584,1782279032000,-637.21890073,0.00020999,2]
[426311578,1782279032000,-161.73272939,0.00020272,2]
[426311591,1782279032000,-1063.18705038,0.0002328,60]
[426311613,1782279033000,-1000.0,0.00025443,2]
[426311610,1782279033000,-1000.0,0.00025443,2]
[426311612,1782279033000,-1000.0,0.00025443,2]
[426311611,1782279033000,-1000.0,0.00025443,2]
[426311616,1782279033000,-525.85954793,0.00025443,2]
[426311607,1782279033000,-500.0,0.00025443,2]
[426311606,1782279033000,-505.33065236,0.00025443,2]
[426311615,1782279033000,-1000.0,0.00025443,2]
[426311614,1782279033000,-1000.0,0.00025443,2]
[426311605,1782279033000,-164.06814861,0.00025443,2]
[426311603,1782279033000,-200.0,0.00025443,2]
[426311602,1782279033000,-680.07,0.00025434,3]
[426311604,1782279033000,-234.38306945,0.00025443,2]
[426311609,1782279033000,-1000.0,0.00025443,2]
[426311608,1782279033000,-283.81540846,0.00025443,2]
[426311617,1782279033000,-474.14045207,0.00025443,2]
[426311625,1782279033000,-500.0,0.00025443,2]
[426311624,1782279033000,-500.0,0.00025443,2]
[426311634,1782279033000,-3550.63512054,0.00025444,2]
[426311633,1782279033000,-500.0,0.00025443,2]
[426311631,1782279033000,-561.16895337,0.00025443,2]
[426311632,1782279033000,-503.73827958,0.00025443,2]
[426311623,1782279033000,-500.0,0.00025443,2]
[426311618,1782279033000,-309.80411987,0.00025443,2]
[426311621,1782279033000,-500.0,0.00025443,2]
[426311630,1782279033000,-500.0,0.00025443,2]
[426311626,1782279033000,-500.0,0.00025443,2]
[426311620,1782279033000,-1042.86496751,0.00025443,2]
[426311622,1782279033000,-500.0,0.00025443,2]
[426311629,1782279033000,-500.0,0.00025443,2]
[426311619,1782279033000,-690.19588013,0.00025443,2]
[426311628,1782279033000,-500.0,0.00025443,2]
[426311627,1782279033000,-500.0,0.00025443,2]